bitfinex/quotes_SOLUSD_20240811
["timestamp","ask_amount","ask_price","bid_price","bid_amount"]
[1723395008548,4.6943,149.12,149.05,45.0]
[1723395009166,4.6939,149.13,149.05,45.0]
[1723395009337,4.6932,149.16,149.08,21.19]
[1723395009532,21.19,149.19,149.1,21.19]
[1723395009737,4.6923,149.18,149.11,1.34100148]
[1723395009960,4.6923,149.18,149.11,17.59430148]
[1723395010170,4.6923,149.18,149.12,21.19]
[1723395010439,4.6923,149.18,149.13,1.34092785]
[1723395011959,4.6923,149.18,149.12,21.19]
[1723395012439,46.1399,149.25,149.12,21.19]
[1723395012440,21.19,149.23,149.14,21.19]
[1723395012641,4.691,149.22,149.15,1.34055107]
[1723395012850,4.691,149.22,149.15,45.0]
[1723395013358,4.6914,149.21,149.15,45.0]
[1723395013560,21.19,149.21,149.14,6.46]
[1723395013744,4.6935,149.15,149.11,16.2533]
[1723395013944,4.693,149.16,149.11,16.2533]
[1723395014647,4.6936,149.14,149.11,16.2533]
[1723395015065,4.6932,149.15,149.11,16.2533]
[1723395015239,4.6932,149.15,149.06,21.19]
[1723395015240,21.19,149.15,149.07,16.2533]
[1723395015442,4.6939,149.13,149.07,16.2533]
[1723395015660,21.19,149.15,149.07,16.2533]
[1723395015661,4.6936,149.14,149.07,16.2533]
[1723395016850,4.6939,149.13,149.07,16.2533]
[1723395017239,4.6936,149.14,149.07,16.2533]
[1723395017642,4.6939,149.13,149.07,16.2533]
[1723395017858,4.6945,149.11,149.07,16.2533]
[1723395018169,4.6945,149.11,149.06,6.46]
[1723395018342,21.19,149.13,149.06,6.46]
[1723395018538,0.12549,149.12,149.03,16.2533]
[1723395018741,21.19,149.13,149.03,16.2533]
[1723395018937,4.6954,149.09,149.03,16.2533]
[1723395019543,4.6949,149.1,149.03,16.2533]
[1723395029253,21.31549,149.09,149.03,16.2533]
[1723395029456,21.19,149.07,148.99,15.8267]
[1723395029659,25.8858,149.07,148.99,15.8267]
[1723395030056,21.19,149.07,148.99,15.8267]
[1723395031352,25.8851,149.09,149.0,66.56647]
[1723395031557,25.8851,149.09,149.01,0.12549]
[1723395032071,15.0826,149.11,149.02,21.19]
[1723395032072,21.19,149.11,149.02,21.19]
[1723395032258,25.8841,149.13,149.04,43.6191]
[1723395032772,4.6942,149.12,149.05,1.34152719]
[1723395033773,4.6942,149.12,149.04,43.6191]
[1723395034573,4.6946,149.11,149.04,43.6191]
[1723395035177,4.6942,149.12,149.04,43.6191]
[1723395036489,4.6942,149.12,149.05,1.34148117]
[1723395037153,4.6942,149.12,149.04,43.6191]
[1723395037352,4.6942,149.12,149.05,45.12549]
[1723395038466,4.6942,149.12,149.06,1.34141306]
[1723395038671,32.9215,149.17,149.08,21.19]
[1723395038866,4.6937,149.14,149.09,15.8267]
[1723395039076,32.9215,149.17,149.09,15.8267]
[1723395039378,21.19,149.17,149.09,15.8267]
[1723395039959,20.0,149.16,149.09,15.8267]
[1723395041877,21.19,149.15,149.09,15.8267]
[1723395043090,21.19,149.13,149.09,15.8267]
[1723395043271,21.19,149.11,149.06,15.8267]
[1723395043578,21.19,149.09,149.04,6.6024]
[1723395044765,21.19,149.07,149.02,15.8267]
[1723395045083,21.19,149.05,148.99,6.6024]
[1723395048172,21.19,149.05,148.98,15.8267]
[1723395050270,21.19,149.03,148.98,15.8267]
[1723395051291,30.0,149.02,148.98,15.8267]
[1723395054094,30.0,149.02,148.95,6.5125]
[1723395054095,21.19,149.01,148.95,6.5125]
[1723395054482,30.0,149.02,148.95,6.5125]
[1723395057310,21.19,149.05,148.95,6.5125]
[1723395057609,21.19,149.03,148.95,6.5125]
[1723395058187,21.19,149.03,148.96,45.0]
[1723395059700,21.19,149.05,148.96,45.0]
[1723395059880,21.31549,149.07,148.98,16.2594]
[1723395060078,21.19,149.07,148.99,1.34208101]
[1723395060377,21.19,149.07,148.98,16.2594]
[1723395061292,20.0,149.06,148.98,16.2594]
[1723395061704,21.19,149.05,148.98,16.2594]
[1723395062198,21.19,149.03,148.98,16.2594]
[1723395065932,21.19,149.05,148.98,16.2594]
[1723395067418,21.19,149.05,148.99,1.34212501]
[1723395067709,21.19,149.05,148.98,16.2594]
[1723395068086,21.19,149.07,148.98,16.2594]
[1723395068292,21.19,149.09,148.99,45.25098]
[1723395068517,21.19,149.07,149.0,6.0329]
[1723395068904,21.19,149.05,149.0,6.0329]
[1723395069120,21.19,149.1,148.98,16.2594]
[1723395069328,21.19,149.03,148.98,16.2594]
[1723395069626,4.6967,149.04,148.98,16.2594]
[1723395069829,25.8864,149.05,148.98,16.2594]
[1723395070017,21.19,149.05,148.98,16.2594]
[1723395070390,25.8864,149.05,148.98,16.2594]
[1723395070594,21.19,149.07,148.98,16.2594]
[1723395071419,21.19,149.07,148.98,37.4494]
[1723395071622,21.19,149.07,148.98,16.2594]
[1723395072439,21.19,149.03,148.98,16.2594]
[1723395073096,21.19,149.01,148.96,6.0329]
[1723395073699,21.19,149.03,148.96,6.0329]
[1723395075236,21.19,149.05,148.96,27.2229]
[1723395075540,21.19,149.05,148.97,1.3424132]
[1723395075839,21.19,149.05,148.96,6.0329]
[1723395076000,21.19,149.03,148.96,6.0329]
[1723395077821,21.19,149.03,148.97,1.34233143]
[1723395078205,0.12549,149.06,148.96,27.2229]
[1723395078520,21.19,149.06,148.97,46.46763495]
[1723395078740,20.0,149.05,148.98,16.0305]
[1723395078936,21.19,149.06,148.99,1.34218669]
[1723395079724,21.19,149.06,148.99,46.34218669]
[1723395079930,21.19,149.08,148.99,45.0]
[1723395080162,21.19,149.08,149.0,0.12549]
[1723395080330,20.0,149.07,149.0,0.12549]
[1723395081231,21.19,149.08,149.0,0.12549]
[1723395082444,21.19,149.08,149.0,0.25098]
[1723395082850,21.19,149.08,149.01,6.0329]
[1723395084552,21.19,149.11,149.02,17.37235439]
[1723395084937,21.19,149.11,149.03,0.12549]
[1723395085137,21.19,149.11,149.03,45.50196]
[1723395085538,16.339,149.15,149.03,45.50196]
[1723395085734,21.19,149.13,149.04,21.19]
[1723395086554,21.19,149.15,149.06,21.19]
[1723395086759,21.19,149.15,149.07,45.25098]
[1723395087657,21.19,149.15,149.06,21.19]
[1723395087832,21.19,149.15,149.05,22.31438]
[1723395088038,21.19,149.15,149.06,45.12549]
[1723395088238,20.0,149.14,149.06,45.12549]
[1723395090157,21.19,149.15,149.07,0.37647]
[1723395090347,21.19,149.17,149.09,15.6517]
[1723395090549,21.19,149.17,149.1,1.3411284]
[1723395090740,21.19,149.19,149.11,6.4484]
[1723395090937,21.19,149.19,149.12,1.34093776]
[1723395092041,21.19,149.19,149.11,6.4484]
[1723395092236,20.0,149.18,149.11,6.4484]
[1723395092542,41.19,149.18,149.11,6.4484]
[1723395095173,21.19,149.22,149.13,15.6517]
[1723395095377,21.19,149.22,149.14,1.34069315]
[1723395095562,21.19,149.22,149.15,1.34071274]
[1723395095961,21.19,149.22,149.13,15.6517]
[1723395096364,21.19,149.22,149.13,16.99241151]
[1723395096564,20.0,149.21,149.13,16.99241151]
[1723395097250,20.0,149.21,149.14,45.12549]
[1723395097451,21.19,149.25,149.16,6.57389]
[1723395097673,21.19,149.25,149.17,1.34041167]
[1723395097873,21.19,149.27,149.19,15.6517]
[1723395098075,21.19,149.27,149.2,1.34013912]
[1723395098275,260.6,149.33,149.22,6.4484]
[1723395098480,21.19,149.29,149.22,6.4484]
[1723395099691,21.19,149.25,149.22,6.4484]
[1723395100361,21.19,149.25,149.19,15.6517]
[1723395101883,25.8803,149.25,149.19,15.6517]
[1723395102287,4.6904,149.24,149.19,15.6517]
[1723395102467,4.6907,149.23,149.19,15.6517]
[1723395102667,4.6904,149.24,149.19,15.6517]
[1723395103995,25.8801,149.25,149.19,15.6517]
[1723395104179,21.19,149.25,149.2,1.34035361]
[1723395104368,21.19,149.25,149.19,15.6517]
[1723395104580,4.69,149.26,149.2,45.12549]
[1723395104879,24.69,149.26,149.2,45.12549]
[1723395105468,4.6901,149.25,149.19,15.6517]
[1723395105795,4.6892,149.28,149.2,45.25098]
[1723395105998,21.19,149.29,149.21,0.25098]
[1723395106173,25.8788,149.29,149.22,0.12549]
[1723395106370,25.8788,149.29,149.22,0.25098]
[1723395106787,4.6888,149.29,149.23,21.7601]
[1723395107169,4.6893,149.28,149.23,21.7601]
[1723395107373,4.6885,149.3,149.23,21.7601]
[1723395108092,4.6889,149.29,149.23,21.7601]
[1723395109003,4.6886,149.3,149.23,21.7601]
[1723395109375,4.6886,149.3,149.24,45.12549]
[1723395110208,4.6877,149.33,149.25,20.12549]
[1723395110380,4.6877,149.33,149.26,46.4650867]
[1723395110579,4.6877,149.33,149.27,1.339572]
[1723395111583,4.687,149.35,149.28,0.12549]
[1723395111782,21.19,149.37,149.28,22.26206]
[1723395111979,21.19,149.35,149.28,21.88559]
[1723395112304,21.19,149.33,149.28,21.7601]
[1723395112474,21.19,149.35,149.28,21.7601]
[1723395112792,4.6867,149.36,149.29,45.0]
[1723395113472,4.687,149.35,149.29,45.0]
[1723395113675,21.19,149.37,149.28,21.7601]
[1723395113877,25.8775,149.34,149.28,21.7601]
[1723395114071,21.19,149.34,149.28,21.7601]
[1723395114291,21.19,149.34,149.29,45.12549]
[1723395114494,25.8775,149.34,149.28,21.7601]
[1723395116309,21.19,149.3,149.24,21.7601]
[1723395116499,21.19,149.32,149.24,21.7601]
[1723395116802,21.19,149.34,149.25,21.19]
[1723395117186,21.19,149.32,149.24,21.7601]
[1723395117392,21.19,149.3,149.24,21.7601]
[1723395117900,25.8779,149.32,149.24,21.7601]
[1723395118120,4.6872,149.35,149.25,22.52975045]
[1723395118406,4.6872,149.35,149.24,21.7601]
[1723395118407,21.19,149.33,149.24,21.88559]
[1723395118584,4.6881,149.32,149.24,21.88559]
[1723395119003,25.8776,149.33,149.24,21.88559]
[1723395119304,65.0,149.32,149.24,21.7601]
[1723395119489,21.19,149.27,149.24,21.7601]
[1723395120588,25.8796,149.27,149.24,15.2431]
[1723395121085,21.19,149.27,149.24,15.2431]
[1723395121422,21.19,149.28,149.24,15.2431]
[1723395121915,25.8792,149.28,149.24,15.2431]
[1723395122202,21.19,149.26,149.24,15.2431]
[1723395122422,21.19,149.28,149.24,15.2431]
[1723395124626,21.19,149.28,149.23,0.0704034]
[1723395125283,4.6884,149.31,149.23,0.0704034]
[1723395125589,21.19,149.3,149.23,0.0704034]
[1723395125784,267.603946,149.37,149.28,21.19]
[1723395126001,265.2864,149.37,149.28,21.19]
[1723395126212,260.6,149.37,149.29,35.2431]
[1723395126520,381.0,149.39,149.29,35.2431]
[1723395126819,21.19,149.33,149.29,35.2431]
[1723395127116,4.6862,149.38,149.29,15.2431]
[1723395127336,21.19,149.33,149.29,15.2431]
[1723395127791,4.6861,149.38,149.29,15.2431]
[1723395127993,381.0,149.39,149.29,15.2431]
[1723395128220,20.0,149.38,149.26,6.517]
[1723395128510,21.19,149.36,149.27,20.0]
[1723395128686,20.0,149.38,149.27,20.0]
[1723395128687,0.12549,149.37,149.28,1.33957631]
[1723395128888,21.19,149.3,149.25,15.8668]
[1723395129303,21.19,149.34,149.25,15.8668]
[1723395129907,26.41,149.35,149.25,15.8668]
[1723395130501,26.41,149.33,149.25,15.8668]
[1723395131020,26.41,149.31,149.25,15.8668]
[1723395131315,26.41,149.31,149.22,6.4233]
[1723395131316,26.41,149.27,149.22,6.4233]
[1723395131616,70.06507,149.3,149.17,6.4233]
[1723395131617,26.41,149.25,149.17,6.4233]
[1723395131816,26.41,149.25,149.17,22.2901]
[1723395132190,26.41,149.24,149.17,22.2901]
[1723395132384,26.66098,149.24,149.17,22.2901]
[1723395132587,0.12549,149.23,149.13,23.62076772]
[1723395132893,65.50196,149.23,149.13,22.2901]
[1723395133215,26.41,149.25,149.14,26.41]
[1723395133820,26.41,149.28,149.16,26.41]
[1723395133992,26.41,149.26,149.17,45.0]
[1723395134194,26.41,149.26,149.18,20.0]
[1723395134407,26.41,149.26,149.15,20.25098]
[1723395134588,26.41,149.28,149.16,73.12688594]
[1723395134971,26.41,149.26,149.17,20.0]
[1723395136337,26.41,149.28,149.18,71.91196]
[1723395136490,260.6,149.29,149.2,6.4233]
[1723395136692,26.41,149.3,149.2,6.4233]
[1723395137423,4.6882,149.31,149.21,20.0]
[1723395137628,26.41,149.26,149.2,6.4233]
[1723395139757,26.41,149.31,149.15,6.4233]
[1723395139758,26.41,149.24,149.15,6.4233]
[1723395140037,26.41,149.22,149.15,6.4233]
[1723395140237,26.41,149.24,149.15,6.4233]
[1723395140448,26.41,149.26,149.15,6.4233]
[1723395140733,26.41,149.24,149.15,6.4233]
[1723395141106,26.41,149.24,149.16,20.0]
[1723395143512,26.41,149.24,149.15,6.4233]
[1723395143513,26.41,149.2,149.15,6.4233]
[1723395144220,26.41,149.18,149.13,15.8668]
[1723395144733,26.41,149.14,149.09,15.8668]
[1723395146216,26.41,149.14,149.08,6.4233]
[1723395146615,26.41,149.1,149.05,15.8668]
[1723395146917,26.41,149.1,149.04,6.4233]
[1723395147121,22.9807,149.16,149.04,6.4233]
[1723395147422,26.41,149.16,149.04,6.4233]
[1723395147807,26.41,149.16,149.05,26.41]
[1723395148010,26.41,149.16,149.06,20.0]
[1723395148537,26.41,149.16,149.07,45.25098]
[1723395148719,26.41,149.16,149.08,20.0]
[1723395148926,26.41,149.14,149.05,0.12549]
[1723395149126,26.41,149.14,149.05,65.37647]
[1723395149611,26.41,149.12,149.05,20.0]
[1723395150513,26.41,149.14,149.05,20.0]
[1723395151824,26.41,149.12,149.04,6.4233]
[1723395152220,26.41,149.1,149.04,6.4233]
[1723395153919,26.41,149.12,149.04,6.4233]
[1723395158529,31.1042,149.12,149.04,6.4233]
[1723395158717,26.41,149.1,149.04,6.4233]
[1723395160533,26.41,149.12,149.04,6.4233]
[1723395162348,26.41,149.14,149.05,45.50196]
[1723395162565,26.41,149.14,149.06,20.0]
[1723395163933,26.41,149.14,149.05,45.50196]
[1723395164141,26.41,149.14,149.06,20.0]
[1723395164343,26.41,149.14,149.07,16.5963]
[1723395165835,26.41,149.12,149.07,16.5963]
[1723395166756,26.41,149.1,149.07,16.5963]
[1723395167555,26.41,149.14,149.07,16.5963]
[1723395168138,0.37647,149.16,149.07,16.5963]
[1723395168139,26.41,149.16,149.07,16.5963]
[1723395168639,31.103,149.16,149.07,16.5963]
[1723395169453,26.41,149.14,149.07,16.5963]
[1723395169656,26.41,149.12,149.07,16.5963]
[1723395172042,26.41,149.1,149.07,16.5963]
[1723395175640,26.41,149.08,149.04,6.4233]
[1723395176158,26.41,149.1,149.04,6.4233]
[1723395179359,26.41,149.12,149.04,6.4233]
[1723395180264,31.1044,149.12,149.04,6.4233]
[1723395180475,26.41,149.1,149.04,6.4233]
[1723395181454,31.1057,149.08,149.04,6.4233]
[1723395181757,26.41,149.06,149.01,15.2699]
[1723395182760,26.41,149.04,149.01,15.2699]
[1723395185354,41.563,149.1,148.96,10.50634476]
[1723395185355,26.41,149.02,148.96,10.50634476]
[1723395185672,26.41,149.02,148.97,20.0]
[1723395186974,26.41,149.04,148.97,20.0]
[1723395188068,26.41,149.02,148.97,20.0]
[1723395188871,26.41,149.0,148.95,21.7167]
[1723395193694,26.41,149.07,148.96,0.25098]
[1723395193980,4.6953,149.09,148.96,0.25098]
[1723395193981,21.2,149.08,148.98,21.32549]
[1723395194159,21.2,149.08,149.0,21.32549]
[1723395194358,21.2,149.08,149.01,23.29278287]
[1723395194677,21.2,149.1,149.02,1.34187763]
[1723395194877,21.2,149.1,149.01,21.9509]
[1723395195069,25.8954,149.08,149.01,21.9509]
[1723395195270,21.2,149.08,149.01,21.9509]
[1723395195783,21.2,149.1,149.01,21.9509]
[1723395195981,4.6946,149.11,149.01,21.9509]
[1723395195982,31.1846,149.11,149.01,21.9509]
[1723395196575,4.6948,149.1,149.01,21.9509]
[1723395196756,31.1851,149.09,149.01,21.9509]
[1723395197864,31.186,149.07,149.01,21.9509]
[1723395198483,26.49,149.09,149.01,21.9509]
[1723395199787,31.1851,149.09,149.01,21.9509]
[1723395199969,26.49,149.09,149.01,21.9509]
[1723395200167,4.6948,149.1,149.01,21.9509]
[1723395201382,4.6952,149.09,149.01,21.9509]
[1723395201586,31.1852,149.09,149.01,21.9509]
[1723395202084,4.6957,149.07,149.01,21.9509]
[1723395202761,31.1857,149.07,149.01,21.9509]
[1723395203169,4.6961,149.06,149.01,21.9509]
[1723395203458,31.1858,149.07,149.01,21.9509]
[1723395204083,26.49,149.07,149.01,21.9509]
[1723395206176,31.1858,149.07,149.01,21.9509]
[1723395206384,26.49,149.07,149.01,21.9509]
[1723395206887,31.1858,149.07,149.01,21.9509]
[1723395207472,4.6961,149.06,149.01,21.9509]
[1723395208384,26.49,149.07,149.01,21.9509]
[1723395208690,26.49,149.09,149.02,1.34202494]
[1723395208994,4.6953,149.09,149.02,1.34202494]
[1723395209174,4.6953,149.09,149.01,21.9509]
[1723395209175,31.1853,149.09,149.01,21.9509]
[1723395209375,26.49,149.07,149.01,21.9509]
[1723395209590,31.186,149.07,149.01,21.9509]
[1723395209887,26.49,149.07,149.01,21.9509]
[1723395210063,31.1858,149.07,149.01,21.9509]
[1723395211076,26.49,149.07,149.01,21.9509]
[1723395211883,31.1858,149.07,149.01,21.9509]
[1723395214186,4.6961,149.06,149.01,21.9509]
[1723395214977,26.49,149.07,149.01,21.9509]
[1723395216097,4.6947,149.11,149.01,21.9509]
[1723395216288,31.1847,149.11,149.02,65.12549]
[1723395216602,4.6949,149.1,149.02,65.12549]
[1723395217593,31.1845,149.11,149.02,65.12549]
[1723395217804,14.4233238,149.15,149.02,65.12549]
[1723395217805,4.6942,149.12,149.03,0.25098]
[1723395218093,25.8842,149.12,149.03,0.37647]
[1723395218268,25.8842,149.12,149.04,0.12549]
[1723395219094,21.19,149.1,149.02,86.19]
[1723395219776,4.1346,149.0,148.97,7.07216622]
[1723395219977,4.1346,149.0,148.99,21.19]
[1723395220181,4.1346,149.0,148.99,21.31549]
[1723395221898,2.5456,149.0,148.99,41.69196]
[1723395222100,2.2278,149.0,148.99,41.69196]
[1723395222296,2.1008,149.0,148.99,41.69196]
[1723395222498,2.0373,149.0,148.99,41.69196]
[1723395222683,2.0373,149.0,148.99,47.74336]
[1723395223785,2.0373,149.0,148.99,47.2414]
[1723395224104,2.0373,149.0,148.99,6.0514]
[1723395224484,2.0373,149.0,148.99,27.2414]
[1723395225302,2.0373,149.0,148.99,47.74336]
[1723395228104,2.0373,149.0,148.99,26.55336]
[1723395228303,2.0373,149.0,148.99,26.0514]
[1723395228511,2.0373,149.0,148.99,6.0514]
[1723395228710,2.0373,149.0,148.99,26.0514]
[1723395229705,2.0373,149.0,148.99,26.17689]
[1723395234314,2.0373,149.0,148.99,20.12549]
[1723395234517,2.0373,149.0,148.99,0.12549]
[1723395235897,2.0373,149.0,148.98,20.0]
[1723395236391,2.0373,149.0,148.97,21.19]
[1723395236591,2.0373,149.0,148.96,1.16806511]
[1723395236893,2.0373,149.0,148.93,31.77054887]
[1723395237102,2.0373,149.0,148.94,3.49679871]
[1723395238002,2.0373,149.0,148.94,23.49679871]
[1723395238208,2.0373,149.0,148.95,0.50196]
[1723395239809,2.0373,149.0,148.95,0.12549]
[1723395240899,2.0373,149.0,148.94,3.49679871]
[1723395241103,63.6321,149.0,148.94,3.49679871]
[1723395241525,21.19,148.99,148.94,3.49679871]
[1723395241822,45.0,148.98,148.94,2.32841263]
[1723395243295,18.6321,149.0,148.94,2.32841263]
[1723395243708,18.6321,149.0,148.95,0.12549]
[1723395244110,18.6321,149.0,148.94,2.32841263]
[1723395244820,18.6321,149.0,148.95,0.12549]
[1723395245725,45.0,148.99,148.94,2.32841263]
[1723395246226,66.19,148.99,148.94,2.32841263]
[1723395248626,21.19,148.97,148.94,2.32841263]
[1723395248922,45.0,148.96,148.94,2.32841263]
[1723395249711,21.19,148.95,148.94,0.9960474]
[1723395250020,66.19,148.95,148.94,0.9960474]
[1723395250907,82.4529,148.95,148.94,0.9960474]
[1723395254430,87.52887,148.95,148.94,0.9960474]
[1723395254813,87.65436,148.95,148.94,0.9960474]
[1723395255316,66.46436,148.95,148.94,0.9960474]
[1723395255825,66.46436,148.95,148.93,0.8084404]
[1723395256020,66.19,148.94,148.93,0.8084404]
[1723395256604,70.8898,148.94,148.93,0.8084404]
[1723395256822,71.39176,148.94,148.93,0.8084404]
[1723395257228,71.39176,148.94,148.87,1.33299172]
[1723395257229,0.12549,148.93,148.87,1.33299172]
[1723395257437,21.19,148.91,148.81,21.19]
[1723395257710,45.0,148.9,148.81,21.19]
[1723395258529,21.19,148.89,148.81,1.33352918]
[1723395258723,45.0,148.88,148.81,22.52352918]
[1723395259815,45.0,148.88,148.82,0.12549]
[1723395260136,45.0,148.89,148.81,22.52352918]
[1723395260347,45.0,148.9,148.82,0.25098]
[1723395260638,45.0,148.9,148.82,21.71996737]
[1723395261317,45.0,148.9,148.82,20.37647]
[1723395261640,45.0,148.9,148.82,20.0]
[1723395262330,45.0,148.9,148.83,1.34354491]
[1723395263617,45.0,148.9,148.82,20.0]
[1723395263916,45.0,148.9,148.83,0.12549]
[1723395264140,49.7011,148.9,148.82,20.0]
[1723395264319,45.0,148.9,148.82,20.0]
[1723395265440,49.7011,148.9,148.81,22.52352918]
[1723395265739,21.19,148.89,148.82,20.0]
[1723395265946,45.0,148.88,148.81,1.33352918]
[1723395266156,61.2629,148.88,148.81,1.33352918]
[1723395266361,21.19,148.87,148.81,1.33352918]
[1723395266550,45.0,148.86,148.81,1.33352918]
[1723395268918,21.19,148.85,148.81,1.33352918]
[1723395269118,45.0,148.84,148.81,1.33352918]
[1723395269646,21.19,148.87,148.81,1.33352918]
[1723395269820,25.8927,148.85,148.81,1.33352918]
[1723395270028,45.0,148.84,148.78,11.33212812]
[1723395270837,21.19,148.81,148.78,11.33212812]
[1723395271041,21.19,148.81,148.78,0.8084404]
[1723395271246,45.0,148.8,148.78,0.8084404]
[1723395272140,45.0,148.81,148.78,0.8084404]
[1723395272440,15.1415,148.82,148.78,0.8084404]
[1723395272947,21.19,148.85,148.78,0.8084404]
[1723395273131,25.8927,148.85,148.78,0.8084404]
[1723395273732,21.19,148.85,148.78,0.8084404]
[1723395273942,25.8928,148.85,148.78,0.8084404]
[1723395274142,45.0,148.84,148.78,0.8084404]
[1723395276844,4.7034,148.83,148.78,0.8084404]
[1723395277037,45.0,148.82,148.78,0.8084404]
[1723395277235,49.7031,148.84,148.78,0.8084404]
[1723395277428,45.0,148.84,148.78,0.8084404]
[1723395277628,21.19,148.83,148.78,0.8084404]
[1723395277839,10.64,148.81,148.78,0.8084404]
[1723395278153,45.0,148.8,148.78,0.8084404]
[1723395278326,4.7027,148.85,148.78,0.8084404]
[1723395278532,10.64,148.83,148.78,0.8084404]
[1723395278738,45.0,148.82,148.78,0.8084404]
[1723395278948,55.64,148.82,148.78,0.8084404]
[1723395279660,10.64,148.81,148.78,0.8084404]
[1723395279842,45.0,148.8,148.78,0.8084404]
[1723395280230,55.64,148.8,148.78,0.8084404]
[1723395282863,10.64,148.79,148.78,0.8084404]
[1723395283152,45.0,148.79,148.78,0.8084404]
[1723395283842,55.64,148.79,148.78,0.8084404]
[1723395284051,15.1415,148.8,148.78,0.8084404]
[1723395284352,11.88179,148.86,148.78,0.8084404]
[1723395284353,10.64,148.84,148.78,0.8084404]
[1723395284743,10.64,148.83,148.78,0.8084404]
[1723395285536,45.0,148.82,148.78,0.8084404]
[1723395285974,25.9853,148.86,148.78,0.8084404]
[1723395286138,10.64,148.85,148.78,2.15247579]
[1723395286954,10.64,148.85,148.78,0.8084404]
[1723395287251,15.343,148.84,148.78,0.8084404]
[1723395287464,10.64,148.84,148.78,2.15248717]
[1723395287774,10.64,148.84,148.78,2.15246446]
[1723395287937,42.5429,148.86,148.78,0.8084404]
[1723395288135,21.26,148.84,148.78,0.8084404]
[1723395288471,45.0,148.83,148.78,0.8084404]
[1723395291442,49.7033,148.83,148.78,0.8084404]
[1723395291850,45.0,148.83,148.78,0.8084404]
[1723395292656,49.7033,148.83,148.78,0.8084404]
[1723395293248,21.26,148.82,148.78,0.8084404]
[1723395293557,45.0,148.81,148.78,0.8084404]
[1723395297048,45.0,148.82,148.78,0.8084404]
[1723395298467,66.26,148.82,148.78,0.8084404]
[1723395298990,45.0,148.82,148.78,0.8084404]
[1723395299148,45.0,148.83,148.78,0.8084404]
[1723395300481,47.2454,148.86,148.78,2.1525492]
[1723395300687,42.5429,148.86,148.78,0.8084404]
[1723395301360,4.7028,148.85,148.78,0.8084404]
[1723395301762,47.2453,148.86,148.78,0.8084404]
[1723395302273,45.0,148.85,148.78,0.8084404]
[1723395302643,21.26,148.84,148.78,0.8084404]
[1723395305196,45.0,148.85,148.78,0.8084404]
[1723395305375,45.0,148.85,148.79,0.12549]
[1723395305579,49.7028,148.85,148.78,0.8084404]
[1723395306269,21.26,148.82,148.78,0.8084404]
[1723395306465,45.0,148.81,148.78,0.8084404]
[1723395307278,21.26,148.8,148.78,0.8084404]
[1723395307965,10.64,148.79,148.78,0.8084404]
[1723395308378,10.64,148.8,148.78,0.8084404]
[1723395308785,55.64,148.79,148.78,0.8084404]
[1723395310599,45.0,148.79,148.78,0.8084404]
[1723395310782,10.64,148.8,148.78,0.8084404]
[1723395310989,10.64,148.81,148.78,0.8084404]
[1723395311182,45.0,148.8,148.78,0.8084404]
[1723395312004,4.703,148.84,148.78,0.8084404]